[Event "Titled Tuesday Blitz December 06 Early 2022"]
[White "Mazurkiewicz, Michal"]
[Black "Battlecruiser_Operational"]
[WhiteFideId "1124943"]
[WhiteElo "2081"]
[BlackElo "2253"]
[Result "0-1"]
[Round "09"]
[TimeControl "180+1"]
[Date "2022.12.07"]
[WhiteClock "0:00:12"]
[BlackClock "0:00:11"]

1. e4 {[%clk 0:02:58]}  c6 {[%clk 0:03:00]} 2. d3 {[%clk 0:02:57]}  g6 {[%clk 0:02:57]} 3. Nf3 {[%clk 0:02:56]}  Bg7 {[%clk 0:02:54]} 4. g3 {[%clk 0:02:57]}  e5 {[%clk 0:02:54]} 5. Bg2 {[%clk 0:02:57]}  Ne7 {[%clk 0:02:54]} 6. O-O {[%clk 0:02:56]}  O-O {[%clk 0:02:54]} 7. Re1 {[%clk 0:02:56]}  Qc7 {[%clk 0:02:38]} 8. c4 {[%clk 0:02:56]}  a5 {[%clk 0:02:35]} 9. Nc3 {[%clk 0:02:55]}  Na6 {[%clk 0:02:31]} 10. a3 {[%clk 0:02:52]}  Nc5 {[%clk 0:02:24]} 11. Be3 {[%clk 0:02:51]}  d6 {[%clk 0:02:23]} 12. Qc2 {[%clk 0:02:46]}  Bd7 {[%clk 0:02:08]} 13. b4 {[%clk 0:02:45]}  Ne6 {[%clk 0:02:06]} 14. Rad1 {[%clk 0:02:32]}  f5 {[%clk 0:01:56]} 15. Ng5 {[%clk 0:02:27]}  Nd4 {[%clk 0:01:46]} 16. Bxd4 {[%clk 0:02:27]}  exd4 {[%clk 0:01:47]} 17. Ne2 {[%clk 0:02:25]}  axb4 {[%clk 0:01:24]} 18. axb4 {[%clk 0:02:25]}  h6 {[%clk 0:01:16]} 19. Nf3 {[%clk 0:02:24]}  fxe4 {[%clk 0:01:15]} 20. dxe4 {[%clk 0:02:22]}  c5 {[%clk 0:01:14]} 21. b5 {[%clk 0:02:19]}  g5 {[%clk 0:01:07]} 22. Nc1 {[%clk 0:02:12]}  Bg4 {[%clk 0:01:01]} 23. Qd3 {[%clk 0:02:08]}  Ng6 {[%clk 0:00:56]} 24. Qb3 {[%clk 0:02:06]}  Qf7 {[%clk 0:00:50]} 25. Rd3 {[%clk 0:02:01]}  Ne5 {[%clk 0:00:32]} 26. h3 {[%clk 0:00:49]}  Bxf3 {[%clk 0:00:21]} 27. Rd2 {[%clk 0:00:44]}  d3 {[%clk 0:00:18]} 28. Bf1 {[%clk 0:00:42]}  Ra1 {[%clk 0:00:15]} 29. Nxd3 {[%clk 0:00:35]}  Rxe1 {[%clk 0:00:15]} 30. Nxe1 {[%clk 0:00:36]}  g4 {[%clk 0:00:15]} 31. hxg4 {[%clk 0:00:33]}  Bxg4 {[%clk 0:00:12]} 32. f4 {[%clk 0:00:31]}  Ng6 {[%clk 0:00:10]} 33. Rxd6 {[%clk 0:00:31]}  h5 {[%clk 0:00:10]} 34. Nc2 {[%clk 0:00:28]}  Nxf4 {[%clk 0:00:10]} 35. gxf4 {[%clk 0:00:26]}  Qxf4 {[%clk 0:00:11]} 36. Qd3 {[%clk 0:00:13]}  Qf2+ {[%clk 0:00:10]} 37. Kh1 {[%clk 0:00:13]}  Bf3+ {[%clk 0:00:11]} 38. Qxf3 {[%clk 0:00:13]}  Qxf3+ {[%clk 0:00:11]} 39. Bg2 {[%clk 0:00:13]}  Qf4 {[%clk 0:00:10]} 40. Rg6 {[%clk 0:00:11]}  Qc1+ {[%clk 0:00:10]} 41. Kh2 {[%clk 0:00:11]}  Qxc2 {[%clk 0:00:10]} 42. e5 {[%clk 0:00:12]}  Qxg6 {[%clk 0:00:10]} 43. e6 {[%clk 0:00:11]}  Kh8 {[%clk 0:00:10]} 44. e7 {[%clk 0:00:11]}  Re8 {[%clk 0:00:11]} 45. b6 {[%clk 0:00:12]}  Rxe7 {[%clk 0:00:11]} 46. Be4 {[%clk 0:00:11]}  Qxe4 {[%clk 0:00:10]} 47. Kh3 {[%clk 0:00:11]}  Qe3+ {[%clk 0:00:10]} 48. Kh4 {[%clk 0:00:12]}  Bf6+ {[%clk 0:00:11]} 49. Kxh5 {[%clk 0:00:12]}  Qg5# {[%clk 0:00:11]} 0-1


[Site "https://www.chess.com"]

[Event "Titled Tuesday Blitz December 06 Early 2022"]
[White "Mendez Fortes, Eduardo Jesus"]
[Black "Chigaev, Maksim"]
[WhiteFideId "3502376"]
[BlackFideId "4108116"]
[WhiteElo "2307"]
[BlackElo "2542"]
[Result "1-0"]
[Round "09"]
[TimeControl "180+1"]
[Date "2022.12.07"]
[WhiteClock "0:01:37"]
[BlackClock "0:00:10"]

1. e4 {[%clk 0:03:00]}  c5 {[%clk 0:02:58]} 2. Nf3 {[%clk 0:03:00]}  e6 {[%clk 0:02:58]} 3. d4 {[%clk 0:03:00]}  cxd4 {[%clk 0:02:59]} 4. Nxd4 {[%clk 0:03:01]}  Nf6 {[%clk 0:03:00]} 5. Nc3 {[%clk 0:03:01]}  Nc6 {[%clk 0:03:00]} 6. Ndb5 {[%clk 0:03:01]}  d6 {[%clk 0:02:57]} 7. Bf4 {[%clk 0:02:59]}  e5 {[%clk 0:02:57]} 8. Bg5 {[%clk 0:02:58]}  a6 {[%clk 0:02:58]} 9. Na3 {[%clk 0:02:59]}  b5 {[%clk 0:02:57]} 10. Nd5 {[%clk 0:03:00]}  Be7 {[%clk 0:02:53]} 11. Bxf6 {[%clk 0:02:59]}  Bxf6 {[%clk 0:02:54]} 12. c4 {[%clk 0:03:00]}  b4 {[%clk 0:02:47]} 13. Nc2 {[%clk 0:03:00]}  a5 {[%clk 0:02:41]} 14. Qf3 {[%clk 0:02:58]}  Bg5 {[%clk 0:02:28]} 15. h4 {[%clk 0:02:57]}  Bh6 {[%clk 0:02:23]} 16. g4 {[%clk 0:02:56]}  Bf4 {[%clk 0:02:14]} 17. Be2 {[%clk 0:02:56]}  O-O {[%clk 0:02:09]} 18. Nxf4 {[%clk 0:02:55]}  exf4 {[%clk 0:02:08]} 19. Qxf4 {[%clk 0:02:55]}  Qe7 {[%clk 0:01:55]} 20. O-O-O {[%clk 0:02:47]}  Ne5 {[%clk 0:01:27]} 21. Ne3 {[%clk 0:02:42]}  Be6 {[%clk 0:01:22]} 22. Kb1 {[%clk 0:02:40]}  a4 {[%clk 0:01:04]} 23. g5 {[%clk 0:02:20]}  Rfc8 {[%clk 0:01:01]} 24. Rd4 {[%clk 0:02:18]}  b3 {[%clk 0:00:30]} 25. a3 {[%clk 0:02:17]}  Nd7 {[%clk 0:00:20]} 26. Qxd6 {[%clk 0:02:08]}  Qe8 {[%clk 0:00:20]} 27. Rhd1 {[%clk 0:02:01]}  Nc5 {[%clk 0:00:19]} 28. Bf3 {[%clk 0:01:48]}  Ra6 {[%clk 0:00:14]} 29. Qe5 {[%clk 0:01:42]}  Raa8 {[%clk 0:00:10]} 30. Nf5 {[%clk 0:01:37]}  Nd7 {[%clk 0:00:10]} 31. Qxg7# {[%clk 0:01:37]} 1-0


[Site "https://www.chess.com"]

[Event "Titled Tuesday Blitz December 06 Early 2022"]
[White "Mikhailovsky, Vladimir"]
[Black "Aravindh, Chithambaram VR."]
[WhiteFideId "34105414"]
[BlackFideId "5072786"]
[WhiteElo "2295"]
[BlackElo "2586"]
[Result "0-1"]
[Round "09"]
[TimeControl "180+1"]
[Date "2022.12.06"]
[WhiteClock "0:00:03"]
[BlackClock "0:00:06"]

1. e4 {[%clk 0:03:00]}  e5 {[%clk 0:02:56]} 2. Nf3 {[%clk 0:02:59]}  Nc6 {[%clk 0:02:56]} 3. Nc3 {[%clk 0:03:00]}  Nf6 {[%clk 0:02:55]} 4. d4 {[%clk 0:03:00]}  exd4 {[%clk 0:02:54]} 5. Nxd4 {[%clk 0:03:01]}  Nxe4 {[%clk 0:02:48]} 6. Nxe4 {[%clk 0:03:02]}  Qe7 {[%clk 0:02:48]} 7. f3 {[%clk 0:03:01]}  d5 {[%clk 0:02:46]} 8. Bb5 {[%clk 0:03:02]}  Bd7 {[%clk 0:02:46]} 9. Bxc6 {[%clk 0:03:01]}  bxc6 {[%clk 0:02:46]} 10. O-O {[%clk 0:03:02]}  dxe4 {[%clk 0:02:46]} 11. fxe4 {[%clk 0:03:03]}  g6 {[%clk 0:02:39]} 12. Be3 {[%clk 0:02:53]}  Bg7 {[%clk 0:02:38]} 13. Nb3 {[%clk 0:02:49]}  Be5 {[%clk 0:02:10]} 14. Qf3 {[%clk 0:02:26]}  O-O {[%clk 0:02:02]} 15. Bd4 {[%clk 0:01:55]}  Bxd4+ {[%clk 0:01:51]} 16. Nxd4 {[%clk 0:01:56]}  c5 {[%clk 0:01:52]} 17. Nb3 {[%clk 0:01:44]}  Bc6 {[%clk 0:01:45]} 18. Rae1 {[%clk 0:01:27]}  c4 {[%clk 0:01:10]} 19. Nd4 {[%clk 0:01:24]}  Bb7 {[%clk 0:01:10]} 20. Qc3 {[%clk 0:01:20]}  c5 {[%clk 0:00:55]} 21. Nf3 {[%clk 0:00:55]}  a5 {[%clk 0:00:44]} 22. Nd2 {[%clk 0:00:47]}  Rfd8 {[%clk 0:00:40]} 23. Nxc4 {[%clk 0:00:46]}  Rd4 {[%clk 0:00:39]} 24. Ne3 {[%clk 0:00:37]}  Qxe4 {[%clk 0:00:31]} 25. Qxc5 {[%clk 0:00:06]}  Rd2 {[%clk 0:00:14]} 26. Qg5 {[%clk 0:00:06]}  Rad8 {[%clk 0:00:08]} 27. Rf3 {[%clk 0:00:06]}  Qc6 {[%clk 0:00:06]} 28. Rf2 {[%clk 0:00:01]}  Qb6 {[%clk 0:00:04]} 29. Rxd2 {[%clk 0:00:01]}  Rxd2 {[%clk 0:00:05]} 30. Qf4 {[%clk 0:00:02]}  Rxg2+ {[%clk 0:00:04]} 31. Kf1 {[%clk 0:00:02]}  Rd2 {[%clk 0:00:04]} 32. c4 {[%clk 0:00:01]}  Rd8 {[%clk 0:00:04]} 33. Re2 {[%clk 0:00:01]}  Qc5 {[%clk 0:00:03]} 34. Rf2 {[%clk 0:00:01]}  Qe7 {[%clk 0:00:03]} 35. b3 {[%clk 0:00:02]}  Bc6 {[%clk 0:00:03]} 36. Qf3 {[%clk 0:00:01]}  Bxf3 {[%clk 0:00:02]} 37. Rxf3 {[%clk 0:00:02]}  Qe4 {[%clk 0:00:03]} 38. Kf2 {[%clk 0:00:03]}  Qd3 {[%clk 0:00:03]} 39. Ng4 {[%clk 0:00:02]}  Qd4+ {[%clk 0:00:04]} 40. Kg3 {[%clk 0:00:03]}  f5 {[%clk 0:00:04]} 41. Nf2 {[%clk 0:00:03]}  Qe5+ {[%clk 0:00:04]} 42. Kg2 {[%clk 0:00:03]}  Rd2 {[%clk 0:00:05]} 43. h3 {[%clk 0:00:03]}  Qd4 {[%clk 0:00:05]} 44. h4 {[%clk 0:00:02]}  Rxa2 {[%clk 0:00:05]} 45. c5 {[%clk 0:00:03]}  Rc2 {[%clk 0:00:05]} 46. c6 {[%clk 0:00:03]}  Rxc6 {[%clk 0:00:06]} 0-1


[Site "https://www.chess.com"]

[Event "Titled Tuesday Blitz December 06 Early 2022"]
[White "Molina, Roberto Junio Brito"]
[Black "Vlassov, Nikolai"]
[WhiteFideId "2109450"]
[BlackFideId "4103360"]
[WhiteElo "2376"]
[BlackElo "2324"]
[Result "1-0"]
[Round "09"]
[TimeControl "180+1"]
[Date "2022.12.06"]
[WhiteClock "0:00:28"]
[BlackClock "0:00:05"]

1. e4 {[%clk 0:03:00]}  Nc6 {[%clk 0:02:59]} 2. Nf3 {[%clk 0:02:59]}  d5 {[%clk 0:02:58]} 3. exd5 {[%clk 0:02:57]}  Qxd5 {[%clk 0:02:59]} 4. Nc3 {[%clk 0:02:57]}  Qa5 {[%clk 0:02:59]} 5. d4 {[%clk 0:02:57]}  Bg4 {[%clk 0:02:59]} 6. h3 {[%clk 0:02:55]}  Bxf3 {[%clk 0:02:59]} 7. Qxf3 {[%clk 0:02:56]}  O-O-O {[%clk 0:03:00]} 8. d5 {[%clk 0:02:53]}  Nb4 {[%clk 0:02:54]} 9. Bd3 {[%clk 0:02:51]}  Nf6 {[%clk 0:02:52]} 10. O-O {[%clk 0:02:50]}  Nbxd5 {[%clk 0:02:52]} 11. Bd2 {[%clk 0:02:48]}  e6 {[%clk 0:02:48]} 12. a3 {[%clk 0:02:42]}  Be7 {[%clk 0:02:29]} 13. b4 {[%clk 0:02:41]}  Qb6 {[%clk 0:02:29]} 14. Nxd5 {[%clk 0:02:34]}  Rxd5 {[%clk 0:02:12]} 15. c4 {[%clk 0:02:24]}  Rd7 {[%clk 0:02:10]} 16. c5 {[%clk 0:02:20]}  Qc6 {[%clk 0:02:09]} 17. Qxc6 {[%clk 0:02:07]}  bxc6 {[%clk 0:02:09]} 18. Ba6+ {[%clk 0:02:08]}  Kb8 {[%clk 0:02:08]} 19. Bc3 {[%clk 0:01:58]}  Rhd8 {[%clk 0:01:50]} 20. Rab1 {[%clk 0:01:57]}  Ne4 {[%clk 0:01:26]} 21. b5 {[%clk 0:01:23]}  Bxc5 {[%clk 0:00:45]} 22. bxc6+ {[%clk 0:01:21]}  Bb6 {[%clk 0:00:45]} 23. cxd7 {[%clk 0:01:14]}  Nxc3 {[%clk 0:00:44]} 24. Rb3 {[%clk 0:01:04]}  Na4 {[%clk 0:00:31]} 25. Bb5 {[%clk 0:00:52]}  Nc5 {[%clk 0:00:30]} 26. Rf3 {[%clk 0:00:49]}  f5 {[%clk 0:00:20]} 27. Bc6 {[%clk 0:00:45]}  g6 {[%clk 0:00:18]} 28. Rd1 {[%clk 0:00:44]}  e5 {[%clk 0:00:17]} 29. Rc3 {[%clk 0:00:40]}  e4 {[%clk 0:00:17]} 30. Kf1 {[%clk 0:00:34]}  a5 {[%clk 0:00:17]} 31. Rd5 {[%clk 0:00:33]}  Nd3 {[%clk 0:00:13]} 32. f3 {[%clk 0:00:33]}  Nf4 {[%clk 0:00:11]} 33. Re5 {[%clk 0:00:32]}  e3 {[%clk 0:00:11]} 34. Re8 {[%clk 0:00:29]}  e2+ {[%clk 0:00:09]} 35. Ke1 {[%clk 0:00:30]}  Nxg2+ {[%clk 0:00:04]} 36. Kxe2 {[%clk 0:00:29]}  Nf4+ {[%clk 0:00:05]} 37. Kd1 {[%clk 0:00:28]} 1-0


[Site "https://www.chess.com"]

[Event "Titled Tuesday Blitz December 06 Early 2022"]
[White "Ozen, Bahadir"]
[Black "Ibarra Jerez, Jose Carlos"]
[WhiteFideId "6337058"]
[BlackFideId "2226332"]
[WhiteElo "2503"]
[BlackElo "2638"]
[Result "0-1"]
[Round "09"]
[TimeControl "180+1"]
[Date "2022.12.06"]
[WhiteClock "0:00:31"]
[BlackClock "0:01:08"]

1. g3 {[%clk 0:03:00]}  Nf6 {[%clk 0:02:59]} 2. Bg2 {[%clk 0:03:00]}  g6 {[%clk 0:03:00]} 3. Nf3 {[%clk 0:03:01]}  Bg7 {[%clk 0:03:00]} 4. d3 {[%clk 0:03:01]}  d6 {[%clk 0:03:01]} 5. O-O {[%clk 0:03:02]}  O-O {[%clk 0:03:01]} 6. e4 {[%clk 0:03:01]}  c5 {[%clk 0:03:02]} 7. c3 {[%clk 0:02:59]}  Nc6 {[%clk 0:03:02]} 8. Nbd2 {[%clk 0:02:57]}  Rb8 {[%clk 0:02:59]} 9. a4 {[%clk 0:02:55]}  a6 {[%clk 0:02:59]} 10. Re1 {[%clk 0:02:40]}  b5 {[%clk 0:02:59]} 11. axb5 {[%clk 0:02:41]}  axb5 {[%clk 0:03:00]} 12. d4 {[%clk 0:02:41]}  b4 {[%clk 0:02:55]} 13. dxc5 {[%clk 0:02:14]}  bxc3 {[%clk 0:02:52]} 14. bxc3 {[%clk 0:02:14]}  dxc5 {[%clk 0:02:50]} 15. Ba3 {[%clk 0:01:53]}  Nd7 {[%clk 0:02:45]} 16. Qc2 {[%clk 0:01:51]}  Nde5 {[%clk 0:02:36]} 17. Nxe5 {[%clk 0:01:50]}  Nxe5 {[%clk 0:02:36]} 18. Reb1 {[%clk 0:01:29]}  Rxb1+ {[%clk 0:02:29]} 19. Rxb1 {[%clk 0:01:30]}  Ba6 {[%clk 0:02:29]} 20. Rd1 {[%clk 0:00:55]}  Qa5 {[%clk 0:02:20]} 21. Nb1 {[%clk 0:00:55]}  Rb8 {[%clk 0:02:11]} 22. f4 {[%clk 0:00:51]}  Nc4 {[%clk 0:01:59]} 23. Bc1 {[%clk 0:00:51]}  Qa1 {[%clk 0:01:59]} 24. Bd2 {[%clk 0:00:43]}  Rb2 {[%clk 0:01:42]} 25. Qd3 {[%clk 0:00:41]}  Rxd2 {[%clk 0:01:24]} 26. Rxd2 {[%clk 0:00:37]}  Nxd2 {[%clk 0:01:24]} 27. Qxd2 {[%clk 0:00:34]}  Qxb1+ {[%clk 0:01:24]} 28. Kf2 {[%clk 0:00:35]}  Qd3 {[%clk 0:01:20]} 29. Qxd3 {[%clk 0:00:35]}  Bxd3 {[%clk 0:01:21]} 30. e5 {[%clk 0:00:36]}  c4 {[%clk 0:01:19]} 31. Ke3 {[%clk 0:00:36]}  f6 {[%clk 0:01:19]} 32. Kd4 {[%clk 0:00:35]}  fxe5+ {[%clk 0:01:19]} 33. fxe5 {[%clk 0:00:36]}  Kf7 {[%clk 0:01:18]} 34. Bd5+ {[%clk 0:00:36]}  e6 {[%clk 0:01:18]} 35. Bc6 {[%clk 0:00:34]}  Bf8 {[%clk 0:01:16]} 36. g4 {[%clk 0:00:34]}  Bh6 {[%clk 0:01:15]} 37. h4 {[%clk 0:00:33]}  Bf4 {[%clk 0:01:15]} 38. Bf3 {[%clk 0:00:32]}  h6 {[%clk 0:01:14]} 39. h5 {[%clk 0:00:32]}  g5 {[%clk 0:01:10]} 40. Bd1 {[%clk 0:00:32]}  Ke7 {[%clk 0:01:11]} 41. Bf3 {[%clk 0:00:31]}  Bg3 {[%clk 0:01:08]} 0-1


[Site "https://www.chess.com"]

[Event "Titled Tuesday Blitz December 06 Early 2022"]
[White "Raahul V S"]
[Black "Korchmar, Vasiliy"]
[WhiteFideId "25035525"]
[BlackFideId "24131750"]
[WhiteElo "2202"]
[BlackElo "2370"]
[Result "0-1"]
[Round "09"]
[TimeControl "180+1"]
[Date "2022.12.06"]
[WhiteClock "0:00:01"]
[BlackClock "0:00:02"]

1. c4 {[%clk 0:03:00]}  c6 {[%clk 0:02:59]} 2. d4 {[%clk 0:02:59]}  d5 {[%clk 0:03:00]} 3. Nf3 {[%clk 0:02:57]}  Nf6 {[%clk 0:03:00]} 4. g3 {[%clk 0:02:57]}  g6 {[%clk 0:03:00]} 5. Bg2 {[%clk 0:02:56]}  Bg7 {[%clk 0:03:00]} 6. cxd5 {[%clk 0:02:56]}  cxd5 {[%clk 0:03:00]} 7. O-O {[%clk 0:02:57]}  O-O {[%clk 0:03:00]} 8. Nc3 {[%clk 0:02:55]}  Ne4 {[%clk 0:03:01]} 9. e3 {[%clk 0:02:47]}  Nxc3 {[%clk 0:02:59]} 10. bxc3 {[%clk 0:02:47]}  Nc6 {[%clk 0:03:00]} 11. Nd2 {[%clk 0:02:35]}  Na5 {[%clk 0:02:51]} 12. Ba3 {[%clk 0:02:34]}  b6 {[%clk 0:02:48]} 13. Re1 {[%clk 0:02:28]}  Bb7 {[%clk 0:02:40]} 14. Bb4 {[%clk 0:01:42]}  Nc6 {[%clk 0:02:34]} 15. Ba3 {[%clk 0:01:41]}  Na5 {[%clk 0:02:32]} 16. Bb4 {[%clk 0:01:38]}  Nc6 {[%clk 0:02:33]} 17. Ba3 {[%clk 0:01:38]}  Rc8 {[%clk 0:02:30]} 18. c4 {[%clk 0:01:37]}  dxc4 {[%clk 0:01:55]} 19. Nxc4 {[%clk 0:01:38]}  Ba6 {[%clk 0:01:55]} 20. Rc1 {[%clk 0:01:28]}  Bb5 {[%clk 0:01:16]} 21. Qb3 {[%clk 0:01:12]}  a6 {[%clk 0:01:17]} 22. Bb2 {[%clk 0:01:11]}  h5 {[%clk 0:00:46]} 23. Na3 {[%clk 0:00:13]}  Na5 {[%clk 0:00:45]} 24. Rxc8 {[%clk 0:00:12]}  Qxc8 {[%clk 0:00:46]} 25. Qb4 {[%clk 0:00:12]}  Bc6 {[%clk 0:00:35]} 26. Qxb6 {[%clk 0:00:11]}  Bxg2 {[%clk 0:00:35]} 27. Kxg2 {[%clk 0:00:12]}  Qa8+ {[%clk 0:00:30]} 28. Kg1 {[%clk 0:00:10]}  Rb8 {[%clk 0:00:30]} 29. Qxa5 {[%clk 0:00:10]}  Rxb2 {[%clk 0:00:31]} 30. Nc4 {[%clk 0:00:10]}  Rc2 {[%clk 0:00:31]} 31. Qa4 {[%clk 0:00:10]}  Qe4 {[%clk 0:00:26]} 32. Qb3 {[%clk 0:00:09]}  h4 {[%clk 0:00:12]} 33. f3 {[%clk 0:00:09]}  Qf5 {[%clk 0:00:12]} 34. e4 {[%clk 0:00:08]}  Bxd4+ {[%clk 0:00:12]} 35. Kh1 {[%clk 0:00:08]}  Qh3 {[%clk 0:00:03]} 36. Qxc2 {[%clk 0:00:08]}  hxg3 {[%clk 0:00:04]} 37. Qg2 {[%clk 0:00:07]}  Qh5 {[%clk 0:00:04]} 38. Qxg3 {[%clk 0:00:07]}  Qb5 {[%clk 0:00:04]} 39. Rc1 {[%clk 0:00:05]}  Qa4 {[%clk 0:00:02]} 40. f4 {[%clk 0:00:04]}  Qxa2 {[%clk 0:00:02]} 41. f5 {[%clk 0:00:03]}  Qe2 {[%clk 0:00:03]} 42. Qg2 {[%clk 0:00:02]}  Qd3 {[%clk 0:00:02]} 43. fxg6 {[%clk 0:00:02]}  f6 {[%clk 0:00:02]} 44. Na5 {[%clk 0:00:01]}  Kg7 {[%clk 0:00:02]} 45. Nc6 {[%clk 0:00:01]}  Be3 {[%clk 0:00:02]} 0-1


[Site "https://www.chess.com"]

[Event "Titled Tuesday Blitz December 06 Early 2022"]
[White "Riehle, Marco"]
[Black "Salinas Herrera, Pablo"]
[WhiteFideId "12904392"]
[BlackFideId "3407128"]
[WhiteElo "2462"]
[BlackElo "2557"]
[Result "1-0"]
[Round "09"]
[TimeControl "180+1"]
[Date "2022.12.06"]
[WhiteClock "0:00:09"]
[BlackClock "0:00:07"]

1. e4 {[%clk 0:02:53]}  c5 {[%clk 0:02:59]} 2. a3 {[%clk 0:02:53]}  g6 {[%clk 0:02:56]} 3. h4 {[%clk 0:02:52]}  d5 {[%clk 0:02:53]} 4. exd5 {[%clk 0:02:46]}  Qxd5 {[%clk 0:02:50]} 5. Nc3 {[%clk 0:02:46]}  Qd8 {[%clk 0:02:50]} 6. h5 {[%clk 0:02:46]}  Bg7 {[%clk 0:02:50]} 7. Bc4 {[%clk 0:02:45]}  Nc6 {[%clk 0:02:48]} 8. d3 {[%clk 0:02:45]}  e6 {[%clk 0:02:40]} 9. Nf3 {[%clk 0:02:42]}  a6 {[%clk 0:02:36]} 10. Bg5 {[%clk 0:02:41]}  Qc7 {[%clk 0:02:28]} 11. Qd2 {[%clk 0:02:38]}  b5 {[%clk 0:02:27]} 12. Bb3 {[%clk 0:02:37]}  Nd4 {[%clk 0:02:23]} 13. Nxd4 {[%clk 0:02:35]}  Bxd4 {[%clk 0:02:24]} 14. O-O-O {[%clk 0:02:29]}  Bb7 {[%clk 0:02:22]} 15. Ne4 {[%clk 0:02:23]}  h6 {[%clk 0:01:34]} 16. hxg6 {[%clk 0:02:18]}  hxg5 {[%clk 0:01:32]} 17. gxf7+ {[%clk 0:02:18]}  Qxf7 {[%clk 0:01:24]} 18. Nxg5 {[%clk 0:02:17]}  Qf6 {[%clk 0:00:46]} 19. Nxe6 {[%clk 0:02:02]}  Rxh1 {[%clk 0:00:35]} 20. Rxh1 {[%clk 0:02:03]}  Bxb2+ {[%clk 0:00:27]} 21. Kb1 {[%clk 0:02:03]}  Bxa3 {[%clk 0:00:26]} 22. c3 {[%clk 0:01:53]}  c4 {[%clk 0:00:24]} 23. Nc7+ {[%clk 0:01:52]}  Kf8 {[%clk 0:00:21]} 24. Nxa8 {[%clk 0:01:38]}  cxb3 {[%clk 0:00:21]} 25. Nc7 {[%clk 0:01:38]}  Bd6 {[%clk 0:00:18]} 26. Rh7 {[%clk 0:01:29]}  Be7 {[%clk 0:00:17]} 27. Kb2 {[%clk 0:00:49]}  Qf5 {[%clk 0:00:17]} 28. Qf4 {[%clk 0:00:44]}  Qxf4 {[%clk 0:00:13]} 29. Ne6+ {[%clk 0:00:44]}  Ke8 {[%clk 0:00:13]} 30. Nxf4 {[%clk 0:00:45]}  Nf6 {[%clk 0:00:13]} 31. Rh8+ {[%clk 0:00:42]}  Kf7 {[%clk 0:00:13]} 32. Kxb3 {[%clk 0:00:42]}  Nd5 {[%clk 0:00:13]} 33. Ne2 {[%clk 0:00:37]}  a5 {[%clk 0:00:12]} 34. c4 {[%clk 0:00:34]}  a4+ {[%clk 0:00:13]} 35. Ka2 {[%clk 0:00:33]}  Nb4+ {[%clk 0:00:13]} 36. Kb1 {[%clk 0:00:34]}  Nxd3 {[%clk 0:00:13]} 37. cxb5 {[%clk 0:00:33]}  a3 {[%clk 0:00:13]} 38. Nc3 {[%clk 0:00:28]}  Bxg2 {[%clk 0:00:12]} 39. Ka2 {[%clk 0:00:26]}  Bf6 {[%clk 0:00:11]} 40. Rc8 {[%clk 0:00:23]}  Be7 {[%clk 0:00:11]} 41. b6 {[%clk 0:00:21]}  Nb4+ {[%clk 0:00:12]} 42. Kb3 {[%clk 0:00:16]}  Nd5 {[%clk 0:00:11]} 43. b7 {[%clk 0:00:13]}  Nxc3 {[%clk 0:00:06]} 44. b8=Q {[%clk 0:00:13]}  a2 {[%clk 0:00:07]} 45. Qf4+ {[%clk 0:00:09]}  Ke6 {[%clk 0:00:07]} 46. Kb2 {[%clk 0:00:08]}  Bf6 {[%clk 0:00:07]} 47. Re8+ {[%clk 0:00:08]}  Kf7 {[%clk 0:00:07]} 48. Rf8+ {[%clk 0:00:08]}  Kxf8 {[%clk 0:00:07]} 49. Qxf6+ {[%clk 0:00:09]} 1-0


[Site "https://www.chess.com"]

[Event "Titled Tuesday Blitz December 06 Early 2022"]
[White "Rosenberg, Evan S"]
[Black "Buksa, Nataliya"]
[WhiteFideId "2019299"]
[BlackFideId "14123622"]
[WhiteElo "2367"]
[BlackElo "2303"]
[Result "1-0"]
[Round "09"]
[TimeControl "180+1"]
[Date "2022.12.07"]
[WhiteClock "0:00:29"]
[BlackClock "0:01:15"]

1. d4 {[%clk 0:03:00]}  d5 {[%clk 0:02:13]} 2. Nf3 {[%clk 0:02:59]}  e6 {[%clk 0:02:13]} 3. g3 {[%clk 0:02:59]}  Nf6 {[%clk 0:02:13]} 4. Bg2 {[%clk 0:02:59]}  Be7 {[%clk 0:02:14]} 5. O-O {[%clk 0:03:00]}  b5 {[%clk 0:02:14]} 6. a4 {[%clk 0:03:00]}  b4 {[%clk 0:02:14]} 7. c4 {[%clk 0:03:00]}  bxc3 {[%clk 0:02:15]} 8. Nxc3 {[%clk 0:03:00]}  O-O {[%clk 0:02:15]} 9. Bf4 {[%clk 0:03:00]}  a5 {[%clk 0:02:11]} 10. Rc1 {[%clk 0:02:56]}  c6 {[%clk 0:02:11]} 11. Ne5 {[%clk 0:02:53]}  Ba6 {[%clk 0:02:11]} 12. Re1 {[%clk 0:02:51]}  Qb6 {[%clk 0:02:12]} 13. Qd2 {[%clk 0:02:05]}  Nfd7 {[%clk 0:02:05]} 14. e4 {[%clk 0:01:54]}  Nxe5 {[%clk 0:02:05]} 15. Bxe5 {[%clk 0:01:48]}  Nd7 {[%clk 0:02:05]} 16. exd5 {[%clk 0:01:41]}  cxd5 {[%clk 0:02:05]} 17. Bf4 {[%clk 0:01:33]}  Rac8 {[%clk 0:02:03]} 18. Nxd5 {[%clk 0:01:25]}  exd5 {[%clk 0:02:01]} 19. Rxe7 {[%clk 0:01:25]}  Nf6 {[%clk 0:02:01]} 20. Rcc7 {[%clk 0:01:14]}  Rxc7 {[%clk 0:01:59]} 21. Bxc7 {[%clk 0:01:06]}  Qc6 {[%clk 0:01:59]} 22. Be5 {[%clk 0:01:03]}  h6 {[%clk 0:01:51]} 23. Rc7 {[%clk 0:00:58]}  Qb6 {[%clk 0:01:40]} 24. Rc5 {[%clk 0:00:55]}  Nd7 {[%clk 0:01:40]} 25. Rxd5 {[%clk 0:00:50]}  Nxe5 {[%clk 0:01:38]} 26. dxe5 {[%clk 0:00:50]}  Bb7 {[%clk 0:01:36]} 27. Rb5 {[%clk 0:00:49]}  Qc7 {[%clk 0:01:33]} 28. Rxb7 {[%clk 0:00:46]}  Qxe5 {[%clk 0:01:33]} 29. Rb5 {[%clk 0:00:45]}  Qc7 {[%clk 0:01:31]} 30. Qxa5 {[%clk 0:00:44]}  Qc1+ {[%clk 0:01:31]} 31. Bf1 {[%clk 0:00:44]}  Re8 {[%clk 0:01:32]} 32. Re5 {[%clk 0:00:39]}  Rc8 {[%clk 0:01:25]} 33. Qe1 {[%clk 0:00:37]}  Qxb2 {[%clk 0:01:15]} 34. Re8+ {[%clk 0:00:36]}  Rxe8 {[%clk 0:01:16]} 35. Qxe8+ {[%clk 0:00:36]}  Kh7 {[%clk 0:01:16]} 36. Qxf7 {[%clk 0:00:35]}  Qb1 {[%clk 0:01:16]} 37. Qc4 {[%clk 0:00:32]}  Qa1 {[%clk 0:01:12]} 38. Kg2 {[%clk 0:00:30]}  h5 {[%clk 0:01:12]} 39. Bd3+ {[%clk 0:00:30]}  Kh6 {[%clk 0:01:11]} 40. Qf4+ {[%clk 0:00:29]}  g5 {[%clk 0:01:09]} 41. Qf8+ {[%clk 0:00:29]}  Qg7 {[%clk 0:01:08]} 42. Qxg7+ {[%clk 0:00:30]}  Kxg7 {[%clk 0:01:09]} 43. a5 {[%clk 0:00:31]}  Kf6 {[%clk 0:01:10]} 44. a6 {[%clk 0:00:31]}  Ke5 {[%clk 0:01:11]} 45. a7 {[%clk 0:00:32]}  Kd4 {[%clk 0:01:12]} 46. a8=Q {[%clk 0:00:32]}  g4 {[%clk 0:01:13]} 47. Qe4+ {[%clk 0:00:32]}  Kc3 {[%clk 0:01:13]} 48. Be2 {[%clk 0:00:31]}  h4 {[%clk 0:01:11]} 49. Qd3+ {[%clk 0:00:31]}  Kb2 {[%clk 0:01:12]} 50. gxh4 {[%clk 0:00:31]}  g3 {[%clk 0:01:12]} 51. hxg3 {[%clk 0:00:31]}  Kc1 {[%clk 0:01:12]} 52. Bf3 {[%clk 0:00:28]}  Kb2 {[%clk 0:01:13]} 53. h5 {[%clk 0:00:28]}  Ka2 {[%clk 0:01:13]} 54. Qb5 {[%clk 0:00:28]}  Ka1 {[%clk 0:01:12]} 55. Kf1 {[%clk 0:00:28]}  Ka2 {[%clk 0:01:12]} 56. Ke2 {[%clk 0:00:29]}  Ka1 {[%clk 0:01:13]} 57. Kd2 {[%clk 0:00:29]}  Ka2 {[%clk 0:01:14]} 58. Kc2 {[%clk 0:00:29]}  Ka3 {[%clk 0:01:15]} 59. Qb3# {[%clk 0:00:29]} 1-0


[Site "https://www.chess.com"]